bitfinex-derivatives/quotes_SOLF0:USTF0_20250630
["timestamp","ask_amount","ask_price","bid_price","bid_amount"]
[1751252425495,5.2643,151.92,151.89,35.45001514]
[1751252425697,5.2643,151.92,151.89,32.4]
[1751252426699,5.2639,151.93,151.89,37.6651]
[1751252429803,5.2642,151.92,151.89,37.6651]
[1751252430003,5.2642,151.92,151.89,32.4]
[1751252431500,5.2642,151.92,151.89,37.6651]
[1751252432903,5.2647,151.91,151.89,32.4]
[1751252433208,3.05001514,151.94,151.89,32.4]
[1751252433600,5.264,151.93,151.89,37.665]
[1751252433805,5.264,151.93,151.9,1.95158266]
[1751252435508,5.2635,151.94,151.91,1.95158266]
[1751252435709,1.95158266,151.98,151.93,1.95158266]
[1751252435906,1.95158266,151.99,151.95,1.95158266]
[1751252436106,1.95158266,151.98,151.94,1.95158266]
[1751252436306,5.2629,151.96,151.94,1.95158266]
[1751252438010,5.2629,151.96,151.93,5.2637]
[1751252438211,5.2629,151.96,151.92,8.31178269]
[1751252439811,5.2629,151.96,151.93,5.2637]
[1751252442713,5.2625,151.97,151.93,5.2637]
[1751252443412,5.2625,151.97,151.94,5.2632]
[1751252443614,5.2625,151.97,151.93,3.04788269]
[1751252444713,5.2625,151.97,151.93,8.31138269]
[1751252445211,5.2625,151.97,151.93,40.71138269]
[1751252445612,5.2627,151.96,151.93,37.6635]
[1751252445806,5.2627,151.96,151.93,40.71138269]
[1751252448612,5.2627,151.96,151.93,37.6635]
[1751252451516,5.2626,151.97,151.93,37.6635]
[1751252452720,5.2627,151.96,151.93,37.6635]
[1751252454512,5.2627,151.96,151.93,32.4]
[1751252456019,5.2627,151.96,151.93,37.6637]
[1751252459715,5.2627,151.96,151.94,1.95069022]
[1751252460417,1.95069022,151.97,151.93,32.4]
[1751252460611,1.95069022,151.97,151.93,34.35069022]
[1751252461018,5.2628,151.96,151.93,34.35069022]
[1751252463328,1.95069022,151.96,151.92,8.18418784]
[1751252463624,1.95069022,151.95,151.91,1.95069022]
[1751252463818,5.2637,151.93,151.91,1.95069022]
[1751252465623,5.2637,151.93,151.9,45.84888784]
[1751252465826,5.2637,151.93,151.91,1.95069022]
[1751252466525,5.2635,151.94,151.91,7.21499022]
[1751252466722,1.95069022,151.96,151.93,6.15365363]
[1751252467114,5.2634,151.94,151.93,6.15365363]
[1751252468522,5.2632,151.95,151.93,6.15365363]
[1751252469023,5.2634,151.94,151.93,6.15365363]
[1751252471229,5.2634,151.94,151.92,10.13487806]
[1751252472430,6.6441,152.01,151.93,1.95069022]
[1751252472731,1.95069022,151.97,151.94,6.15388578]
[1751252473143,5.2629,151.96,151.94,6.15388578]
[1751252475343,5.2629,151.96,151.94,8.104576]
[1751252475643,5.2629,151.96,151.94,6.15388578]
[1751252476444,5.263,151.95,151.94,6.15388578]
[1751252476749,5.263,151.95,151.94,8.104576]
[1751252478844,5.263,151.95,151.94,6.15388578]
[1751252480743,5.2634,151.94,151.93,6.15388578]
[1751252480946,1.95069022,151.94,151.91,6.15388578]
[1751252481143,1.95069022,151.92,151.91,6.15388578]
[1751252482645,7.21479022,151.92,151.91,6.15388578]
[1751252485050,5.2641,151.92,151.91,6.15388578]
[1751252486641,5.2644,151.91,151.89,10.13487806]
[1751252488750,39.2013,151.96,151.9,1.95069022]
[1751252488952,1.95069022,151.95,151.92,6.15240507]
[1751252489447,5.2639,151.93,151.92,6.15240507]
[1751252492850,5.2639,151.93,151.91,8.10309529]
[1751252493252,5.2639,151.93,151.92,6.15240507]
[1751252495052,5.2639,151.93,151.92,8.10309529]
[1751252495942,5.2639,151.93,151.92,6.15240507]
[1751252498550,5.2641,151.92,151.91,6.15240507]
[1751252499156,7.21479022,151.92,151.91,6.15240507]
[1751252499654,5.2641,151.92,151.91,6.15240507]
[1751252509463,1.95069022,151.94,151.89,10.13487806]
[1751252509464,5.2644,151.91,151.9,6.15240507]
[1751252510261,5.2644,151.91,151.9,8.10309529]
[1751252510966,5.2644,151.91,151.9,1.95069022]
[1751252512364,5.2642,151.92,151.9,1.95069022]
[1751252512661,1.95069022,151.93,151.9,8.10421561]
[1751252513561,5.2641,151.92,151.9,6.15352539]
[1751252513757,1.95069022,151.94,151.91,6.15352539]
[1751252514457,1.95069022,151.95,151.91,6.15352539]
[1751252514655,1.95069022,151.94,151.91,6.15352539]
[1751252515062,5.2641,151.92,151.91,6.15352539]
[1751252521574,5.2641,151.92,151.91,8.10421561]
[1751252521764,5.2641,151.92,151.91,1.95069022]
[1751252522468,5.2639,151.93,151.91,1.95069022]
[1751252522665,5.2639,151.93,151.92,1.95069022]
[1751252523263,5.2634,151.94,151.92,1.95069022]
[1751252523460,5.2634,151.94,151.93,8.10939642]
[1751252525675,5.2634,151.94,151.93,6.1587062]
[1751252534281,7.21409022,151.94,151.93,6.1587062]
[1751252534480,5.2641,151.92,151.91,6.1587062]
[1751252536283,5.2644,151.91,151.9,6.1587062]
[1751252545186,5.2648,151.9,151.89,6.1587062]
[1751252553597,82.48481849,151.98,151.89,1.95069022]
[1751252553790,1.95069022,151.97,151.93,1.95069022]
[1751252554099,5.2634,151.94,151.93,1.95069022]
[1751252554694,50.08481849,151.98,151.93,8.10431437]
[1751252554992,4.18579022,152.0,151.97,1.95069022]
[1751252555192,1.95069022,152.01,151.97,1.95069022]
[1751252555399,5.2622,151.98,151.95,6.15362415]
[1751252555599,5.2622,151.98,151.97,1.95069022]
[1751252556597,1.95069022,152.03,151.97,1.95069022]
[1751252556797,1.95069022,152.03,151.99,1.95069022]
[1751252557098,5.2613,152.0,151.96,43.79612415]
[1751252557302,5.2613,152.0,151.99,1.95069022]
[1751252559799,5.2613,152.0,151.98,3.04567915]
[1751252563201,5.2617,151.99,151.98,3.04567915]
[1751252563392,5.2617,151.99,151.96,35.40567915]
[1751252563599,3.04567915,152.03,151.96,32.36]
[1751252564000,5.2622,151.98,151.96,32.36]
[1751252565204,5.2623,151.97,151.96,32.36]
[1751252565401,5.2623,151.97,151.93,6.15362415]
[1751252565402,3.04567915,151.97,151.93,32.36]
[1751252566004,5.2633,151.95,151.93,32.36]
[1751252566703,3.04567915,152.02,151.94,3.04567915]
[1751252566904,3.04567915,152.02,151.95,6.12728838]
[1751252567100,5.2618,151.99,151.96,5.2626]
[1751252569505,5.2618,151.99,151.96,8.30827915]
[1751252570008,5.2618,151.99,151.96,3.04567915]
[1751252576710,5.2618,151.99,151.96,8.30827915]
[1751252577609,5.2614,152.0,151.96,8.30827915]
[1751252580312,5.2617,151.99,151.96,5.2626]
[1751252580514,5.2617,151.99,151.96,8.30827915]
[1751252582318,3.04567915,152.02,151.96,3.04567915]
[1751252582922,5.2619,151.99,151.96,3.04567915]
[1751252583919,5.262,151.98,151.96,3.04567915]
[1751252584224,3.04567915,152.02,151.96,3.04567915]
[1751252584523,5.2618,151.99,151.96,8.30837915]
[1751252592527,6.9934,152.05,151.98,3.04567915]
[1751252592826,6.9934,152.05,151.97,32.36]
[1751252592827,3.04567915,152.04,151.97,32.36]
[1751252593023,3.04567915,152.02,151.97,32.36]
[1751252593619,5.2615,152.0,151.97,37.6221]
[1751252594428,5.2617,151.99,151.97,37.6221]
[1751252594729,3.04567915,152.02,151.97,37.6221]
[1751252595226,5.2615,152.0,151.97,37.6221]
[1751252595417,3.04567915,152.02,151.97,32.36]
[1751252595624,5.2615,152.0,151.96,32.36]
[1751252596019,5.2615,152.0,151.97,5.2621]
[1751252596618,10.03907915,152.05,151.96,41.53296753]
[1751252596825,10.03907915,152.05,151.98,9.17296753]
[1751252597026,10.03907915,152.05,151.98,9.18736409]
[1751252597230,5.2606,152.03,151.99,5.2614]
[1751252597425,5.2606,152.03,151.99,11.40308494]
[1751252597831,5.2607,152.02,151.99,11.40308494]
[1751252598928,5.2603,152.03,152.0,6.14168494]
[1751252599120,5.2603,152.03,152.0,11.40288494]
[1751252599520,5.2603,152.03,152.0,43.76288494]
[1751252601424,5.2603,152.03,152.0,38.50168494]
[1751252601927,5.2603,152.03,152.0,41.54736409]
[1751252602435,5.26,152.04,152.0,46.80856409]
[1751252604537,5.26,152.04,152.01,6.14168494]
[1751252605238,5.26,152.04,152.01,11.40258494]
[1751252606334,5.26,152.04,152.01,5.2609]
[1751252607844,5.26,152.04,152.02,1.94848124]
[1751252608045,5.2597,152.05,152.02,1.94848124]
[1751252609845,5.2597,152.05,152.02,7.20908124]
[1751252610345,5.2597,152.05,152.03,1.94848124]
[1751252610542,5.2594,152.06,152.03,1.94848124]
[1751252610742,5.2594,152.06,152.04,1.94848124]
[1751252611139,4.6284,152.09,152.04,1.94848124]
[1751252611140,5.259,152.07,152.04,1.94848124]
[1751252611344,1.94848124,152.09,152.02,6.14168494]
[1751252611540,1.94848124,152.09,152.05,1.94848124]
[1751252611740,5.2587,152.08,152.05,1.94848124]
[1751252612546,5.2587,152.08,152.04,37.5997]
[1751252612547,5.2589,152.07,152.04,34.28848124]
[1751252613845,5.2589,152.07,152.05,1.94848124]
[1751252615245,1.94848124,152.08,152.05,1.94848124]
[1751252615942,5.2591,152.07,152.05,1.94848124]
[1751252618047,5.2592,152.06,152.05,1.94848124]
[1751252622557,5.259,152.07,152.05,1.94848124]
[1751252626351,5.2586,152.08,152.06,1.94848124]
[1751252627152,5.2583,152.09,152.06,1.94848124]
[1751252627354,4.26228124,152.1,152.06,1.94848124]
[1751252628454,5.2584,152.09,152.06,7.20768124]
[1751252628757,5.2584,152.09,152.07,1.94848124]
[1751252629859,5.2584,152.09,152.08,1.94848124]
[1751252632463,4.4644,152.12,152.08,1.94848124]
[1751252632761,6.41288124,152.12,152.08,1.94848124]
[1751252632960,1.94848124,152.11,152.05,5.2595]
[1751252633268,1.94848124,152.07,152.04,34.28848124]
[1751252633466,5.2594,152.06,152.04,34.28848124]
[1751252634765,2.352,152.1,152.05,1.94848124]
[1751252634963,32.34,152.15,152.09,1.94848124]
[1751252635162,5.2574,152.12,152.1,1.94848124]
[1751252636872,5.257,152.13,152.1,1.94848124]
[1751252637166,5.257,152.13,152.11,1.94848124]
[1751252638377,5.2572,152.12,152.1,1.94848124]
[1751252639676,5.257,152.13,152.11,1.94848124]
[1751252639876,1.94848124,152.15,152.11,1.94848124]
[1751252640474,5.2568,152.13,152.11,1.94848124]
[1751252640674,1.94848124,152.15,152.11,1.94848124]
[1751252640875,5.257,152.13,152.1,1.94848124]
[1751252641174,5.257,152.13,152.11,1.94848124]
[1751252643579,5.2572,152.12,152.11,1.94848124]
[1751252644079,5.257,152.13,152.11,1.94848124]
[1751252646382,5.2566,152.14,152.12,1.94848124]
[1751252647178,5.2562,152.15,152.13,1.94848124]
[1751252648584,5.2559,152.16,152.13,1.94848124]
[1751252648783,5.2559,152.16,152.14,1.94848124]
[1751252649585,5.2559,152.16,152.13,1.94848124]
[1751252650983,5.2559,152.16,152.14,1.94848124]
[1751252651582,5.2557,152.17,152.14,1.94848124]
[1751252651786,1.94848124,152.18,152.15,1.94848124]
[1751252652280,7.20388124,152.18,152.15,1.94848124]
[1751252652485,5.2554,152.18,152.15,1.94848124]
[1751252653580,5.2555,152.17,152.15,1.94848124]
[1751252654182,5.2552,152.18,152.16,1.94848124]
[1751252654388,1.94848124,152.19,152.16,1.94848124]
[1751252654781,5.2553,152.18,152.16,1.94848124]
[1751252655183,1.94848124,152.19,152.16,1.94848124]
[1751252655487,5.2551,152.18,152.16,1.94848124]
[1751252656484,5.2549,152.19,152.17,1.94848124]
[1751252656687,1.94848124,152.2,152.17,1.94848124]
[1751252657281,5.2551,152.18,152.17,1.94848124]
[1751252659590,5.255,152.19,152.17,1.94848124]
[1751252659889,1.94848124,152.2,152.17,1.94848124]
[1751252660086,2.2553,152.21,152.16,1.94848124]
[1751252660286,1.94848124,152.19,152.16,1.94848124]
[1751252661591,5.2553,152.18,152.16,1.94848124]
[1751252662192,5.2553,152.18,152.17,1.94848124]
[1751252662391,5.2549,152.19,152.17,1.94848124]
[1751252664394,5.2551,152.18,152.17,1.94848124]
[1751252665094,5.2549,152.19,152.17,1.94848124]
[1751252666598,5.2551,152.18,152.17,1.94848124]
[1751252668997,5.2551,152.18,152.16,32.34]
[1751252669298,5.2551,152.18,152.17,1.94848124]
[1751252670197,5.2549,152.19,152.17,1.94848124]
[1751252670392,1.94848124,152.19,152.16,32.34]
[1751252671005,5.2554,152.18,152.16,32.34]
[1751252671805,5.2554,152.18,152.16,34.28848124]
[1751252672504,5.2554,152.17,152.16,34.28848124]
[1751252672903,5.2554,152.17,152.16,32.34]
[1751252673302,5.2554,152.17,152.15,1.94848124]
[1751252673498,5.2558,152.16,152.14,5.2563]
[1751252673700,5.2558,152.16,152.15,1.94848124]
[1751252674407,5.2561,152.15,152.14,32.3]
[1751252674606,1.94848124,152.19,152.14,34.24848124]
[1751252674802,1.94848124,152.19,152.16,1.94848124]
[1751252674996,5.2556,152.17,152.16,1.94848124]
[1751252677208,5.2559,152.16,152.15,1.94848124]
[1751252677406,5.2559,152.16,152.14,34.24848124]
[1751252678108,5.2559,152.16,152.15,1.94848124]
[1751252681714,5.2556,152.17,152.15,1.94848124]
[1751252682010,2.2553,152.21,152.16,1.94848124]
[1751252682011,4.20378124,152.21,152.16,1.94848124]
[1751252682201,4.20378124,152.21,152.17,1.94848124]
[1751252683410,5.2551,152.19,152.17,1.94848124]
[1751252684408,4.20378124,152.21,152.17,1.94848124]
[1751252684409,5.2551,152.18,152.17,1.94848124]
[1751252685710,5.2549,152.19,152.17,1.94848124]
[1751252686516,5.2553,152.18,152.16,1.94848124]
[1751252688015,1.94848124,152.19,152.16,1.94848124]
[1751252688716,5.2553,152.18,152.16,1.94848124]
[1751252690717,5.2554,152.17,152.15,1.94848124]
[1751252691817,5.2554,152.17,152.16,1.94848124]
[1751252697220,5.2554,152.17,152.16,8.09016618]
[1751252699921,88.80748373,152.24,152.16,6.14168494]
[1751252700122,1.94848124,152.2,152.16,8.09016618]
[1751252700420,5.2546,152.2,152.17,7.20378124]
[1751252700619,1.94848124,152.21,152.17,7.20378124]
[1751252700825,1.94848124,152.2,152.16,8.09016618]
[1751252701012,1.94848124,152.2,152.17,6.14168494]
[1751252701209,5.2547,152.19,152.17,6.14168494]
[1751252702414,5.2551,152.18,152.17,6.14168494]
[1751252703419,7.20358124,152.18,152.17,6.14168494]
[1751252703618,5.2554,152.17,152.16,6.14168494]
[1751252703815,7.20388124,152.17,152.16,6.14168494]
[1751252704615,5.2558,152.16,152.15,6.14168494]
[1751252704816,1.94848124,152.16,152.13,6.14168494]
[1751252705219,5.2565,152.14,152.13,6.14168494]
[1751252706822,5.2565,152.14,152.12,8.09016618]
[1751252707519,32.32,152.2,152.12,8.09016618]
[1751252707825,7.20528124,152.13,152.12,6.14168494]
[1751252708023,1.94848124,152.13,152.11,6.14168494]
[1751252708223,32.32,152.16,152.11,6.14168494]
[1751252708428,1.94848124,152.15,152.11,8.09016618]
[1751252709221,32.32,152.19,152.11,13.34746618]
[1751252709518,1.94848124,152.16,152.12,1.94848124]
[1751252710220,5.2564,152.15,152.13,1.94848124]
[1751252710427,1.94848124,152.17,152.13,1.94848124]
[1751252711530,5.256,152.16,152.13,7.20528124]
[1751252713431,5.256,152.16,152.14,1.94848124]
[1751252716230,5.2562,152.15,152.13,1.94848124]
[1751252720839,5.2559,152.16,152.13,7.20528124]
[1751252721641,5.2559,152.16,152.14,1.94848124]
[1751252722435,5.2561,152.15,152.14,1.94848124]
[1751252722740,5.2561,152.15,152.13,1.94848124]
[1751252725348,1.94848124,152.17,152.13,1.94848124]
[1751252725349,5.2565,152.14,152.13,1.94848124]
[1751252725648,1.94848124,152.17,152.13,1.94848124]
[1751252725843,5.2561,152.15,152.13,1.94848124]
[1751252727050,5.2561,152.15,152.13,7.20528124]
[1751252727250,5.2559,152.16,152.13,7.20528124]
[1751252727850,5.2559,152.16,152.13,1.94848124]
[1751252728350,5.2559,152.16,152.13,7.20528124]
[1751252728950,5.2559,152.16,152.13,1.94848124]
[1751252729342,5.2561,152.15,152.13,1.94848124]
[1751252742064,5.2561,152.15,152.12,13.34466016]
[1751252743960,5.2565,152.14,152.12,13.34466016]
[1751252746161,5.2563,152.15,152.13,6.14168494]
[1751252746959,5.2559,152.16,152.13,11.39848494]
[1751252747257,1.94587522,152.21,152.13,6.14168494]
[1751252747463,5.2548,152.19,152.17,1.94473165]
[1751252753268,5.2548,152.19,152.16,6.14168494]
[1751252753669,5.2548,152.19,152.17,1.94473165]
[1751252758366,5.2545,152.2,152.17,1.94473165]
[1751252759173,5.2545,152.2,152.18,1.94473165]
[1751252761370,5.2547,152.19,152.18,1.94473165]
[1751252761674,1.94473165,152.19,152.16,6.14168494]
[1751252762070,5.2557,152.17,152.15,34.24473165]
[1751252762664,5.2558,152.16,152.15,1.94473165]
[1751252762867,1.94473165,152.16,152.14,8.494e-05]
[1751252763075,10.5089,152.2,152.1,8.18418784]
[1751252763076,1.94473165,152.15,152.1,8.18418784]
[1751252763272,36.6612,152.18,152.1,8.18418784]
[1751252763471,1.94473165,152.15,152.11,1.94473165]
[1751252763868,1.94473165,152.14,152.1,1.94473165]
[1751252764072,5.2574,152.12,152.1,1.94473165]
[1751252767676,1.94473165,152.13,152.09,1.94473165]
[1751252768375,5.2573,152.12,152.09,1.94473165]
[1751252768778,5.2573,152.12,152.1,1.94473165]
[1751252769176,7.20163165,152.13,152.1,1.94473165]
[1751252769578,5.2569,152.13,152.1,1.94473165]
[1751252772383,5.2569,152.13,152.09,5.2582]
[1751252772578,5.2569,152.13,152.1,1.94473165]
[1751252772779,5.2573,152.12,152.1,1.94473165]
[1751252777392,7.20173165,152.13,152.1,1.94473165]
[1751252777689,5.257,152.13,152.1,1.94473165]
[1751252778991,5.257,152.13,152.1,7.20253165]
[1751252780700,5.257,152.13,152.1,5.2578]
[1751252780902,5.257,152.13,152.1,7.20253165]
[1751252784906,1.94473165,152.13,152.09,1.94473165]
[1751252785207,1.94473165,152.12,152.08,1.94473165]
[1751252785504,5.2578,152.11,152.08,7.20323165]
[1751252785803,5.2578,152.11,152.09,1.94473165]
[1751252788705,5.2579,152.1,152.09,1.94473165]
[1751252788907,1.94473165,152.12,152.09,1.94473165]
[1751252790604,5.2576,152.11,152.09,1.94473165]
[1751252792007,5.2576,152.11,152.08,5.2585]
[1751252792209,5.2576,152.11,152.09,1.94473165]
[1751252796506,5.2576,152.11,152.08,5.2585]
[1751252796707,5.2576,152.11,152.09,1.94473165]
[1751252798316,5.2576,152.11,152.07,5.2587]
[1751252798516,5.2576,152.11,152.08,1.94473165]
[1751252799516,5.2576,152.11,152.08,7.20323165]
[1751252799718,5.2576,152.11,152.09,1.94473165]
[1751252800314,7.20203165,152.12,152.09,7.20293165]
[1751252801514,5.2573,152.12,152.09,7.20293165]
[1751252803622,1.94473165,152.14,152.1,7.20243165]
[1751252804621,5.257,152.13,152.1,7.20243165]
[1751252808824,5.257,152.13,152.1,1.94473165]
[1751252809825,5.2572,152.12,152.1,1.94473165]
[1751252810622,1.94473165,152.11,152.08,8.18418784]
[1751252810826,1.94473165,152.11,152.07,1.94473165]
[1751252811126,5.2582,152.09,152.07,1.94473165]
[1751252812428,1.94473165,152.09,152.06,8.18418784]
[1751252812630,1.94473165,152.09,152.05,42.42891949]
[1751252812928,5.2586,152.08,152.05,42.42891949]
[1751252814322,5.259,152.07,152.05,42.42891949]
[1751252815124,5.2592,152.06,152.05,42.42891949]
[1751252815328,5.2592,152.06,152.05,32.3]
[1751252815526,5.2592,152.06,152.04,8.18418784]
[1751252816617,2.3304,152.12,152.05,10.12891949]
[1751252816818,1.94473165,152.11,152.07,1.94473165]
[1751252817128,5.2585,152.09,152.07,1.94473165]
[1751252817530,1.94473165,152.11,152.07,1.94473165]
[1751252818522,5.2581,152.1,152.07,7.20363165]
[1751252820528,1.94473165,152.08,152.05,8.18418784]
[1751252820831,1.94473165,152.1,152.06,1.94473165]
[1751252821528,5.2583,152.09,152.06,7.20393165]
[1751252822931,5.2583,152.09,152.06,13.3499937]
[1751252829033,7.20273165,152.1,152.06,13.3499937]
[1751252829227,32.3,152.16,152.08,1.94473165]
[1751252829431,1.94473165,152.13,152.09,1.94473165]
[1751252829833,5.2577,152.11,152.09,1.94473165]
[1751252830635,5.2577,152.11,152.08,45.6492937]
[1751252832035,5.2579,152.1,152.08,38.44606205]
[1751252832235,7.20263165,152.1,152.08,38.44606205]
[1751252832431,1.94473165,152.1,152.08,38.44606205]
[1751252832626,7.20293165,152.09,152.08,6.14606205]
[1751252832932,1.94473165,152.09,152.07,6.14606205]
[1751252833231,1.94473165,152.09,152.06,6.14606205]
[1751252833429,5.2585,152.08,152.06,6.14606205]
[1751252835036,5.2589,152.07,152.06,6.14606205]
[1751252835238,5.2589,152.07,152.05,38.44606205]
[1751252838044,5.2592,152.06,152.05,38.44606205]
[1751252838238,5.2592,152.06,152.04,6.14606205]
[1751252839138,7.20393165,152.06,152.04,6.14606205]
[1751252839334,5.2596,152.05,152.04,6.14606205]
[1751252839737,7.20433165,152.05,152.04,6.14606205]
[1751252839931,1.94473165,152.05,152.03,6.14606205]
[1751252840430,5.2599,152.04,152.03,6.14606205]
[1751252843839,7.20463165,152.04,152.03,6.14606205]
[1751252844042,5.2603,152.03,152.02,6.14606205]
[1751252844440,5.2603,152.03,152.01,6.14606205]
[1751252846244,5.2603,152.03,152.01,8.0907937]
[1751252846445,5.2603,152.03,152.01,6.14606205]
[1751252846646,5.2603,152.03,152.01,8.0907937]
[1751252848151,5.2601,152.04,152.01,8.0907937]
[1751252851350,5.2601,152.04,152.01,13.3515937]
[1751252857157,5.2601,152.04,152.01,11.40686205]
[1751252857357,5.2601,152.04,152.01,8.0907937]
[1751252858558,5.2604,152.03,152.01,6.14606205]
[1751252858758,5.2604,152.03,152.0,9.889]
[1751252858759,5.2604,152.03,152.0,13.3518937]
[1751252859857,5.2604,152.03,152.01,6.14606205]
[1751252861061,5.2604,152.03,152.01,8.0907937]
[1751252862658,5.2604,152.03,152.01,6.14606205]
[1751252863860,5.2606,152.02,152.01,6.14606205]
[1751252864160,5.2606,152.02,152.0,7.20583165]
[1751252864161,7.20533165,152.02,152.0,6.14606205]
[1751252867464,5.261,152.01,152.0,6.14606205]
[1751252869267,7.20553165,152.02,152.0,6.14606205]
[1751252871168,5.261,152.01,152.0,6.14606205]
[1751252871369,1.94473165,152.01,151.99,38.44606205]
[1751252872168,7.20583165,152.01,151.99,38.44606205]
[1751252872770,5.2611,152.01,151.99,38.44606205]
[1751252873067,5.2611,152.01,151.99,43.70766205]
[1751252874371,5.2611,152.01,151.99,38.44606205]
[1751252874663,5.2613,152.0,151.99,6.14606205]
[1751252874868,1.94473165,152.0,151.97,6.14606205]
[1751252876565,5.2618,151.99,151.97,6.14606205]
[1751252878870,5.2618,151.99,151.97,11.40836205]
[1751252881370,5.2618,151.99,151.97,6.14606205]
[1751252883573,5.2618,151.99,151.97,11.40836205]
[1751252883872,1.94473165,152.0,151.97,11.40836205]
[1751252883873,7.20613165,152.0,151.97,11.40836205]
[1751252884069,1.94473165,152.0,151.97,6.14606205]
[1751252884373,5.2617,151.99,151.97,6.14606205]
[1751252885374,7.20613165,152.0,151.97,11.40836205]
[1751252886873,7.20613165,152.0,151.97,13.3530937]
[1751252887271,1.94473165,152.0,151.98,5.2617]
[1751252887474,7.20583165,152.01,151.98,5.2617]
[1751252887770,18.67940759,152.1,151.97,8.0907937]
[1751252887771,18.67940759,152.1,152.01,5.2607]
[1751252887972,1.94473165,152.06,152.02,1.94473165]
[1751252888165,1.94473165,152.06,152.03,1.94473165]
[1751252888371,5.2598,152.05,152.03,1.94473165]
[1751252888869,5.2599,152.04,152.03,1.94473165]
[1751252889065,1.94473165,152.06,152.01,5.2609]
[1751252889270,1.94473165,152.05,152.01,7.20563165]
[1751252889776,5.2601,152.04,152.02,5.2606]
[1751252891577,5.2601,152.04,152.02,7.20533165]
[1751252892279,5.2597,152.05,152.02,7.20533165]
[1751252893274,5.2597,152.05,152.02,13.3513937]
[1751252893776,7.20413165,152.06,152.03,5.2601]
[1751252893977,5.2594,152.06,152.03,7.20483165]
[1751252894581,5.2594,152.06,152.03,13.3508937]
[1751252895483,5.2594,152.06,152.03,7.20483165]
[1751252896489,5.259,152.07,152.04,7.20463165]
[1751252896986,5.2593,152.06,152.04,1.94473165]
[1751252897286,5.2593,152.06,152.03,13.3508937]
[1751252897690,7.20373165,152.07,152.04,5.2598]
[1751252900391,5.2592,152.06,152.04,5.2598]
[1751252901487,5.2592,152.06,152.03,13.3508937]
[1751252901688,5.2592,152.06,152.04,1.94473165]
[1751252902987,5.2596,152.05,152.03,6.14606205]
[1751252903285,32.3,152.12,152.02,7.20523165]
[1751252903286,32.3,152.14,152.04,1.94951131]
[1751252903479,5.2588,152.08,152.05,1.94951131]
[1751252903686,1.94951131,152.09,152.04,1.94951131]
[1751252903993,5.2591,152.07,152.04,7.20921131]
[1751252904389,5.2591,152.07,152.04,13.35527336]
[1751252907295,5.2591,152.07,152.04,7.20921131]
[1751252908689,5.2591,152.07,152.05,1.94782475]
[1751252909396,5.2591,152.07,152.05,7.20732475]
[1751252909695,5.2587,152.08,152.05,7.20732475]
[1751252909895,5.2587,152.08,152.06,1.94782475]
[1751252910096,5.2587,152.08,152.05,7.20732475]
[1751252913499,5.2589,152.07,152.05,1.94782475]
[1751252914697,5.2592,152.06,152.04,1.94782475]
[1751252915299,5.259,152.07,152.04,7.20772475]
[1751252915698,5.259,152.07,152.05,1.94782475]
[1751252918002,5.2592,152.06,152.04,5.2599]
[1751252918202,5.2592,152.06,152.04,7.20772475]
[1751252918400,1.94782475,152.06,152.03,6.14606205]
[1751252918596,2.2818,152.12,152.02,6.14606205]
[1751252918795,1.94782475,152.09,152.05,1.94782475]
[1751252919489,5.2588,152.08,152.05,1.94782475]
[1751252919694,5.2588,152.08,152.05,7.20732475]
[1751252920700,5.2588,152.08,152.06,5.2591]
[1751252921800,5.2588,152.08,152.06,7.20666519]
[1751252923500,5.2583,152.09,152.06,7.20666519]
[1751252923896,5.2586,152.08,152.06,7.20666519]
[1751252924501,5.2584,152.09,152.06,7.20666519]
[1751252927603,5.2584,152.09,152.07,1.94756519]
[1751252929106,5.2579,152.1,152.07,7.20626519]
[1751252930306,5.2582,152.09,152.07,1.94756519]
[1751252932318,5.2582,152.09,152.07,7.20646519]
[1751252932918,5.2582,152.09,152.07,1.94756519]
[1751252933715,5.2582,152.09,152.06,7.20643425]
[1751252934019,5.2582,152.09,152.07,5.2588]
[1751252934218,5.258,152.1,152.07,7.20613425]
[1751252935520,1.94733425,152.11,152.07,7.20613425]
[1751252935521,7.20493425,152.11,152.08,5.2585]
[1751252935721,1.94733425,152.11,152.07,1.94733425]
[1751252936129,5.2579,152.1,152.07,7.20593425]
[1751252936322,5.2579,152.1,152.07,1.94733425]
[1751252937621,5.2579,152.1,152.08,5.2585]
[1751252938521,7.20503425,152.11,152.08,5.2585]